fUST/lending_fUST_20240806
["ID","MTS","AMOUNT","RATE_DAILY","PERIOD"]
[334286120,1722894550642,-500.0,0.00020518,2]
[334286121,1722894550663,-500.0,0.00020518,2]
[334286122,1722894550684,-500.0,0.00020518,2]
[334286123,1722894550706,-4124.85664398,0.00020519,2]
[334286124,1722894550758,-20775.14335602,0.00020519,2]
[334286125,1722894550780,-208.561844,0.00020547,2]
[334286126,1722894550801,-774.852817,0.00020574,2]
[334286127,1722894550823,-208.561844,0.00020602,2]
[334286128,1722894550845,-208.561844,0.00020657,2]
[334286129,1722894550869,-207.238394,0.00020707,2]
[334286130,1722894550891,-208.561844,0.00020711,2]
[334286131,1722894550912,-402.85575215,0.00020721,2]
[334286132,1722894550933,-208.561844,0.00020766,2]
[334286133,1722894550955,-208.561844,0.00020821,2]
[334286134,1722894550976,-208.561844,0.00020876,2]
[334286135,1722894550999,-208.561844,0.0002093,2]
[334286136,1722894551040,-208.561844,0.00020985,2]
[334286137,1722894551061,-17122.4170132,0.00020998,2]
[334286138,1722894551084,-492.45155524,0.00020999,2]
[334286139,1722894551106,-1126.89570191,0.00021632,2]
[334286140,1722894551127,-918.12752336,0.00021805,2]
[334286141,1722894551149,-176.24730842,0.00021906,2]
[334286142,1722894551170,-818.78794327,0.00021916,2]
[334286143,1722894551192,-302.15405627,0.00022,2]
[334286144,1722894551213,-420.0,0.00022075,2]
[334286145,1722894551233,-302.15405627,0.0002222,2]
[334286146,1722894551255,-420.0,0.00022307,2]
[334286147,1722894551276,-302.15405627,0.0002244,2]
[334286148,1722894551297,-302.15405627,0.0002266,2]
[334286149,1722894551319,-141.19938651,0.0002288,2]
[334286150,1722894551373,-160.95466976,0.0002288,2]
[334286151,1722894551395,-394.74853762,0.000231,4]
[334286152,1722894551416,-659.06012253,0.00023415,2]
[334286153,1722894551438,-1874.7478806,0.00024454,2]
[334286154,1722894551460,-587.0,0.00024538,2]
[334286155,1722894551481,-621.95300613,0.00024586,2]
[334286156,1722894551502,-200.0,0.00024658,15]
[334286157,1722894551540,-250.15678194,0.00024729,2]
[334286158,1722894551563,-222.0960515,0.00024729,2]
[334286159,1722894551583,-500.0,0.00025,30]
[334286160,1722894551604,-500.0,0.00025,30]
[334286161,1722894551623,-517.0,0.00025,30]
[334286162,1722894551643,-620.09765031,0.00025815,2]
[334286163,1722894551663,-834.99,0.0002656,3]
[334286164,1722894551683,-402.3465429,0.00026569,2]
[334286165,1722894551704,-556.65,0.0002657,3]
[334286166,1722894551724,-278.32,0.0002657,3]
[334286167,1722894551744,-17496.05,0.0002657,3]
[334286168,1722894551765,-667.98,0.0002658,3]
[334286169,1722894551785,-9072.7905882,0.0002658,3]
[334286170,1722894561130,-5186.84571011,0.0002658,3]
[334286171,1722894562220,151.69521147,0.00014247,2]
[334286172,1722894563106,-25.49821053,0.00014247,2]
[334286173,1722894574094,-154.54409492,0.00026589,2]
[334286174,1722894574116,-18137.8978506,0.0002659,3]
[334286175,1722894574139,-500.0,0.00026599,2]
[334286176,1722894574160,-428.72381835,0.00026599,2]
[334286177,1722894574184,-500.0,0.00026599,2]
[334286178,1722894574207,-648.88355102,0.00026599,2]
[334286179,1722894574229,-500.0,0.00026599,2]
[334286180,1722894574251,-500.0,0.00026599,2]
[334286181,1722894574273,-500.0,0.00026599,2]
[334286182,1722894574304,-500.0,0.00026599,2]
[334286183,1722894574326,-500.0,0.00026599,2]
[334286184,1722894574349,-198.90761913,0.00026599,2]
[334286185,1722894574372,-300.0,0.00026599,2]
[334286186,1722894574397,-442.23,0.000266,31]
[334286187,1722894574423,-442.23,0.000266,31]
[334286188,1722894574448,-442.23,0.000266,31]
[334286189,1722894574472,-442.23,0.000266,31]
[334286190,1722894574495,-442.23,0.000266,31]
[334286191,1722894574519,-442.23,0.000266,31]
[334286192,1722894574546,-442.23,0.000266,31]
[334286193,1722894574571,-442.23,0.000266,31]
[334286194,1722894574599,-442.23,0.000266,31]
[334286195,1722894574624,-442.23,0.000266,31]
[334286196,1722894574649,-442.23,0.000266,31]
[334286197,1722894574673,-442.23,0.000266,31]
[334286198,1722894574697,-442.23,0.000266,31]
[334286199,1722894574720,-442.23,0.000266,31]
[334286200,1722894574742,-442.23,0.000266,31]
[334286201,1722894574765,-442.23,0.000266,31]
[334286202,1722894574789,-442.23,0.000266,31]
[334286203,1722894574812,-442.23,0.000266,31]
[334286204,1722894574835,-442.23,0.000266,31]
[334286205,1722894574859,-442.23,0.000266,31]
[334286206,1722894574880,-160.54991199,0.00026619,2]
[334286207,1722894574901,-4933.31735811,0.00026859,2]
[334286208,1722894574923,-823.0,0.00026991,2]
[334286209,1722894574943,-4053.04399779,0.00027,2]
[334286210,1722894574964,-789.47414375,0.00027,2]
[334286211,1722894585805,157.33891375,0.00024729,2]
[334286255,1722894631884,-3057.79672793,0.00024628,2]
[334286308,1722894638924,-666.02400803,0.00024628,2]
[334286309,1722894638933,-300.0,0.00024728,2]
[334286310,1722894638945,-594.97124773,0.00024729,2]
[334286311,1722894638956,-156.95333335,0.00024729,2]
[334286312,1722894638965,-1620.79650159,0.00024729,2]
[334286313,1722894638976,-452.60283055,0.00024729,2]
[334286314,1722894638985,-1649.47263498,0.00024729,2]
[334286315,1722894638995,-402.3465429,0.00025,2]
[334286316,1722894639005,-1821.70055237,0.00025,30]
[334286317,1722894639014,-160.200956,0.00025086,2]
[334286318,1722894639024,-881.47696693,0.00026589,2]
[334286319,1722894639037,-4604.29114157,0.00026669,2]
[334286320,1722894639047,-4210.52585625,0.00027,2]
[334286321,1722894639057,-189.52144051,0.00027,2]
[334286322,1722894639067,-189.52144051,0.00027,2]
[334286323,1722894639078,-3330.84698275,0.00027,2]
[334286324,1722894639088,-620.00488252,0.00027106,2]
[334286325,1722894639097,-4604.29114157,0.00027109,2]
[334286326,1722894639107,-153.09388874,0.00027118,2]
[334286327,1722894639118,-500.0,0.00027118,2]
[334286328,1722894639128,-180.0,0.00027118,2]
[334286329,1722894639138,-207.68899902,0.00027118,2]
[334286330,1722894639147,-500.0,0.00027118,2]
[334286331,1722894639157,-487.90917678,0.00027118,2]
[334286332,1722894639166,-4933.31735807,0.00027119,2]
[334286333,1722894639176,-18137.8978506,0.00027157,3]
[334286334,1722894639186,-207.238394,0.00027167,2]
[334286335,1722894639195,-266.32590117,0.00027331,2]
[334286336,1722894639205,-4933.31735807,0.0002738,2]
[334286337,1722894639215,-4604.29114157,0.00027384,2]
[334286338,1722894639225,-4604.29114158,0.00027508,2]
[334286339,1722894639235,-150.112233,0.000276,9]
[334286340,1722894639245,-4933.31735807,0.0002764,2]
[334286341,1722894639256,-1143.614551,0.000278,2]
[334286342,1722894639265,-150.5,0.00027819,120]
[334286343,1722894639274,-150.5,0.00027829,120]
[334286344,1722894639284,-150.5,0.00027839,120]
[334286345,1722894639294,-150.5,0.00027845,120]
[334286346,1722894639304,-1209.63593929,0.0002785,2]
[334286347,1722894639313,-150.5,0.00027855,120]
[334286348,1722894639324,-202.53,0.00027865,120]
[334286349,1722894639333,-150.5,0.00027865,120]
[334286350,1722894639343,-154.72922386,0.00027875,2]
[334286351,1722894639352,-150.5,0.000279,120]
[334286352,1722894639363,-359.84,0.000279,7]
[334286353,1722894639372,-1107.28,0.000279,14]
[334286354,1722894639382,-4933.31735807,0.000279,2]
[334286355,1722894639392,-150.5,0.0002791,120]
[334286356,1722894639403,-243.0,0.00027911,120]
[334286357,1722894639412,-256.9,0.00027913,3]
[334286358,1722894639422,-16264.55,0.00027913,3]
[334286359,1722894639432,-243.0,0.00027921,120]
[334286360,1722894639442,-1027.49,0.00027923,3]
[334286361,1722894639451,-513.75,0.00027923,3]
[334286362,1722894639461,-256.87,0.00027923,3]
[334286363,1722894639471,-19517.46,0.00027923,3]
[334286364,1722894639481,-243.0,0.00027931,120]
[334286365,1722894639491,-300.10667285,0.00027932,2]
[334286366,1722894639637,-500.0,0.00027932,2]
[334286367,1722894639649,-500.0,0.00027932,2]
[334286368,1722894639659,-614.21848571,0.00027932,2]
[334286369,1722894639668,-500.0,0.00027932,2]
[334286370,1722894639678,-500.0,0.00027932,2]
[334286371,1722894639687,-500.0,0.00027932,2]
[334286372,1722894639697,-199516.876356,0.00027933,3]
[334286373,1722894639706,-337936.10784308,0.00027943,30]
[334286374,1722894639923,-44.47972299,0.00027943,30]
[334286386,1722894642015,-13553.79,0.00027913,3]
[334286387,1722894642027,-235903.9932839,0.00027943,30]
[334286388,1722894642039,-972.0,0.00027943,30]
[334286389,1722894642050,-12933.75000001,0.00027943,30]
[334286397,1722894643063,-20846.56580794,0.00027943,30]
[334286398,1722894643076,-1791.89,0.00027943,30]
[334286399,1722894643087,-1432.6,0.00027943,30]
[334286400,1722894643113,-499.78027732,0.00027943,30]
[334286407,1722894645981,-1832.13744262,0.00027943,30]
[334286408,1722894646039,-14437.86522214,0.00027943,30]
[334286409,1722894646049,-236.56991232,0.0002795,10]
[334286410,1722894646059,-5842.54,0.00028,14]
[334286411,1722894646069,-1965.23253652,0.00028,120]
[334286412,1722894646081,-150.112233,0.00028,6]
[334286413,1722894646090,-150.112233,0.000284,9]
[334286414,1722894646100,-620.00024413,0.00028461,2]
[334286415,1722894646110,-1874.7478806,0.00028489,2]
[334286416,1722894646121,-150.112233,0.000288,10]
[334286417,1722894646130,-150.112233,0.000292,9]
[334286418,1722894646139,-2054.98,0.00029293,3]
[334286419,1722894646148,-1027.5,0.00029293,3]
[334286420,1722894646158,-513.74,0.00029293,3]
[334286421,1722894646167,-513.74,0.00029293,3]
[334286422,1722894646177,-2124.51614001,0.00029384,2]
[334286423,1722894646186,-150.112233,0.000296,7]
[334286424,1722894646198,-150.0,0.0003,7]
[334286426,1722894646208,-151.0,0.0003,120]
[334286427,1722894646217,-150.112233,0.0003,6]
[334286428,1722894646227,-154.75391149,0.0003,4]
[334286429,1722894646236,-164.0,0.0003,2]
[334286430,1722894646246,-151.0,0.0003,120]
[334286431,1722894646255,-1000.0,0.000302,6]
[334286432,1722894646265,-150.112233,0.000304,7]
[334286433,1722894646274,-1209.63593929,0.00030467,2]
[334286434,1722894646284,-442.23,0.000305,31]
[334286435,1722894646293,-442.23,0.000305,31]
[334286436,1722894646303,-442.23,0.000305,31]
[334286437,1722894646312,-442.23,0.000305,31]
[334286438,1722894646322,-442.23,0.000305,31]
[334286439,1722894646335,-442.23,0.000305,31]
[334286440,1722894646344,-442.23,0.000305,31]
[334286441,1722894646354,-442.23,0.000305,31]
[334286442,1722894646363,-442.23,0.000305,31]
[334286443,1722894646373,-442.23,0.000305,31]
[334286444,1722894646382,-442.23,0.000305,31]
[334286445,1722894646393,-442.23,0.000305,31]
[334286446,1722894646403,-442.23,0.000305,31]
[334286447,1722894646412,-442.23,0.000305,31]
[334286448,1722894646422,-442.23,0.000305,31]
[334286449,1722894646432,-442.23,0.000305,31]
[334286450,1722894646442,-442.23,0.000305,31]
[334286451,1722894646452,-442.23,0.000305,31]
[334286452,1722894646462,-442.23,0.000305,31]
[334286453,1722894646472,-442.23,0.000305,31]
[334286454,1722894646481,-1000.0,0.000307,6]
[334286455,1722894646490,-150.112233,0.000308,9]
[334286456,1722894646500,-774.852817,0.00030861,2]
[334286457,1722894646509,-150.112233,0.000312,8]
[334286458,1722894646518,-1000.0,0.000312,6]
[334286459,1722894646527,-1107.28,0.000315,14]
[334286460,1722894646536,-754.203387,0.00031507,120]
[334286461,1722894646546,-153.942881,0.00031515,7]
[334286462,1722894646555,-153.942881,0.00031515,7]
[334286463,1722894646564,-151.0,0.00031534,120]
[334286464,1722894646574,-6540.74963503,0.00031583,21]
[334286465,1722894646586,-17996.15561356,0.00031583,7]
[334286466,1722894646596,-326047.97638839,0.00031583,60]
[334286467,1722894646605,-634.380881,0.00031591,7]
[334286468,1722894646615,-634.380881,0.00031591,7]
[334286469,1722894646625,-164.0,0.00031644,2]
[334286470,1722894646635,-150.112233,0.00032,7]
[334286471,1722894646645,-151.0,0.00032219,120]
[334286472,1722894646655,-1874.7478806,0.00032525,2]
[334286473,1722894646664,-156.12428899,0.00032727,4]
[334286474,1722894646673,-165.73090826,0.00032727,4]
[334286475,1722894646683,-245.75207084,0.00032727,2]
[334286476,1722894646692,-215.7100545,0.00032727,4]
[334286477,1722894646702,-359.84,0.000329,30]
[334286478,1722894646711,-199.0,0.00033,2]
[334286479,1722894646721,-151.0,0.00033068,120]
[334286480,1722894646730,-1209.63593929,0.00033085,2]
[334286481,1722894646740,-199.0,0.00033151,2]
[334286482,1722894646750,-166.0,0.00033226,2]
[334286483,1722894646760,-207.238394,0.00033626,2]
[334286484,1722894646769,-325.52924746,0.00033854,3]
[334286485,1722894646778,-600.0,0.00033854,2]
[334286486,1722894646787,-1107.28,0.000344,14]
[334286487,1722894646797,-442.23,0.000344,31]
[334286488,1722894646806,-442.23,0.000344,31]
[334286489,1722894646816,-442.23,0.000344,31]
[334286490,1722894646825,-442.23,0.000344,31]
[334286491,1722894646837,-442.23,0.000344,31]
[334286492,1722894646847,-442.23,0.000344,31]
[334286493,1722894646856,-442.23,0.000344,31]
[334286494,1722894646866,-442.23,0.000344,31]
[334286495,1722894646876,-442.23,0.000344,31]
[334286496,1722894646886,-442.23,0.000344,31]
[334286497,1722894646897,-442.23,0.000344,31]
[334286498,1722894646906,-442.23,0.000344,31]
[334286499,1722894646915,-442.23,0.000344,31]
[334286500,1722894646925,-442.23,0.000344,31]
[334286501,1722894646935,-442.23,0.000344,31]
[334286502,1722894646945,-442.23,0.000344,31]
[334286503,1722894646954,-442.23,0.000344,31]
[334286504,1722894646964,-442.23,0.000344,31]
[334286505,1722894646973,-442.23,0.000344,31]
[334286506,1722894646983,-442.23,0.000344,31]
[334286507,1722894646993,-151.0,0.00034438,120]
[334286508,1722894647002,-199.0,0.00034521,2]
[334286509,1722894647012,-151.0,0.00034603,120]
[334286510,1722894647021,-640.32095285,0.00035,7]
[334286511,1722894647033,-1209.63593929,0.00035702,2]
[334286512,1722894647048,-151.0,0.00036137,120]
[334286513,1722894647057,-205.0,0.00036247,2]
[334286514,1722894647067,-1874.7478806,0.0003656,2]
[334286515,1722894647078,-151.0,0.00036658,120]
[334286516,1722894647087,-754.203387,0.00036758,120]
[334286517,1722894647097,-359.84,0.000368,30]
[334286518,1722894647106,-150.112233,0.00037,9]
[334286519,1722894647119,-19096.76987131,0.0003726,31]
[334286520,1722894647129,-1107.28,0.000376,14]
[334286521,1722894647139,-151.0,0.00037671,120]
[334286522,1722894647149,-165.80280606,0.000377,120]
[334286523,1722894647158,-173.228744,0.000379,2]
[334286524,1722894647167,-306.0,0.000379,2]
[334286525,1722894647177,-153.0,0.00037909,2]
[334286526,1722894647186,-153.0,0.00037909,2]
[334286527,1722894647196,-153.0,0.00037909,2]
[334286528,1722894647206,-207.0130742,0.00037909,2]
[334286529,1722894647215,-442.23,0.000383,31]
[334286530,1722894647224,-442.23,0.000383,31]
[334286531,1722894647233,-442.23,0.000383,31]
[334286532,1722894647243,-442.23,0.000383,31]
[334286533,1722894647252,-442.23,0.000383,31]
[334286534,1722894647261,-442.23,0.000383,31]
[334286535,1722894647270,-442.23,0.000383,31]
[334286536,1722894647279,-442.23,0.000383,31]
[334286537,1722894647289,-442.23,0.000383,31]
[334286538,1722894647298,-442.23,0.000383,31]
[334286539,1722894647307,-442.23,0.000383,31]
[334286540,1722894647316,-442.23,0.000383,31]
[334286541,1722894647326,-442.23,0.000383,31]
[334286542,1722894647335,-442.23,0.000383,31]
[334286543,1722894647344,-442.23,0.000383,31]
[334286544,1722894647354,-442.23,0.000383,31]
[334286545,1722894647363,-442.23,0.000383,31]
[334286546,1722894647372,-442.23,0.000383,31]
[334286547,1722894647382,-442.23,0.000383,31]
[334286548,1722894647391,-442.23,0.000383,31]
[334286549,1722894647401,-1209.63593929,0.00038319,2]
[334286550,1722894647411,-199.0,0.00038663,14]
[334286551,1722894647420,-150.46,0.00038748,2]
[334286552,1722894647429,-507.0,0.00038748,2]
[334286553,1722894647439,-253.008,0.00038751,2]
[334286554,1722894647449,-151.0,0.00038877,120]
[334286555,1722894647459,-588.5772798,0.00038904,2]
[334286556,1722894647468,-3868.0,0.00039,120]
[334286557,1722894647478,-359.84,0.000391,30]
[334286558,1722894647487,-151.0,0.00039205,120]
[334286559,1722894647500,-164.0,0.00039871,14]
[334286560,1722894647510,-5000.0,0.0004,30]
[334286561,1722894647520,-3868.0,0.0004,120]
[334286562,1722894647529,-3868.0,0.0004,120]
[334286563,1722894647539,-200.0,0.0004,2]
[334286564,1722894647549,-207.238394,0.00040086,2]
[334286565,1722894647559,-4920.01918287,0.00040528,2]
[334286566,1722894647568,-602.41,0.00040547,30]
[334286567,1722894647578,-1874.7478806,0.00040596,28]
[334286568,1722894647588,-500.0,0.00040643,120]
[334286569,1722894647597,-500.0,0.00040643,120]
[334286570,1722894647606,-500.0,0.00040643,120]
[334286571,1722894647616,-253.33,0.00040643,120]
[334286572,1722894647626,-602.41,0.00040684,32]
[334286573,1722894647635,-151.0,0.0004074,120]
[334286574,1722894647645,-21349.11065949,0.000408,30]
[334286575,1722894647655,-602.41,0.00040821,34]
[334286576,1722894647664,-2000.0,0.00040821,120]
[334286577,1722894647674,-1209.63593929,0.00040937,2]
[334286578,1722894647684,-602.41,0.00040958,36]
[334286579,1722894647694,-200.0,0.00040973,2]
[334286580,1722894647703,-2000.0,0.00040986,4]
[334286581,1722894647713,-2000.0,0.00040995,4]
[334286582,1722894647722,-151.355207,0.00040995,14]
[334286583,1722894647732,-412.652995,0.00040995,14]
[334286584,1722894647742,-412.652995,0.00040995,14]
[334286585,1722894647751,-5000.0,0.00041,41]
[334286586,1722894647760,-4912.32752411,0.00041,21]
[334286587,1722894647770,-3868.0,0.00041,120]
[334286588,1722894647903,-3868.0,0.00041,120]
[334286589,1722894647912,-3989.26,0.00041,120]
[334286590,1722894647921,-30000.0,0.00041,5]
[334286591,1722894647931,-20000.0,0.00041,3]
[334286592,1722894647940,-10000.0,0.00041,2]
[334286593,1722894647950,-151.0,0.00041,14]
[334286594,1722894647959,-676.827631,0.00041,14]
[334286595,1722894647968,-676.827631,0.00041,14]
[334286596,1722894647978,-744.49188,0.00041,14]
[334286597,1722894647987,-744.49188,0.00041,14]
[334286598,1722894647996,-151.0,0.00041,14]
[334286599,1722894648006,-151.0,0.00041,14]
[334286600,1722894648015,-151.0,0.00041,14]
[334286601,1722894648025,-247.310179,0.00041,14]
[334286602,1722894648035,-1983.46025,0.00041,14]
[334286603,1722894648046,-1983.46025,0.00041,14]
[334286604,1722894648056,-473.872628,0.00041,14]
[334286605,1722894648065,-473.872628,0.00041,14]
[334286606,1722894648075,-352.660187,0.00041,14]
[334286607,1722894648094,-352.660187,0.00041,14]
[334286608,1722894648103,-151.0,0.00041,14]
[334286609,1722894648116,-151.0,0.00041,14]
[334286610,1722894648125,-151.0,0.00041,14]
[334286611,1722894648134,-151.0,0.00041,14]
[334286612,1722894648143,-151.0,0.00041,14]
[334286613,1722894648154,-2025.926407,0.00041,14]
[334286614,1722894648163,-2025.926407,0.00041,14]
[334286615,1722894648172,-418.169369,0.00041,14]
[334286616,1722894648181,-418.169369,0.00041,14]
[334286617,1722894648191,-151.0,0.00041,14]
[334286618,1722894648201,-887.690658,0.00041,14]
[334286619,1722894648210,-887.690658,0.00041,14]
[334286620,1722894648220,-151.0,0.00041,14]
[334286621,1722894648233,-634.380881,0.00041,14]
[334286622,1722894648243,-634.380881,0.00041,14]
[334286623,1722894648253,-151.0,0.00041,14]
[334286624,1722894648262,-1047.764022,0.00041,14]
[334286625,1722894648273,-1047.764022,0.00041,14]
[334286626,1722894648282,-151.0,0.00041,14]
[334286627,1722894648291,-151.0,0.00041,14]
[334286628,1722894648300,-151.0,0.00041,14]
[334286629,1722894648310,-151.0,0.00041,14]
[334286630,1722894648321,-167.031489,0.00041,14]
[334286631,1722894648331,-259.184146,0.00041,14]
[334286632,1722894648341,-151.0,0.00041,14]
[334286633,1722894648351,-259.184146,0.00041,14]
[334286634,1722894648361,-209.343087,0.00041,14]
[334286635,1722894648370,-151.0,0.00041,14]
[334286636,1722894648380,-209.343087,0.00041,14]
[334286637,1722894648390,-151.0,0.00041,14]
[334286638,1722894648400,-230.653843,0.00041,14]
[334286639,1722894648410,-230.653843,0.00041,14]
[334286640,1722894648420,-186.891644,0.00041,14]
[334286641,1722894648429,-600.0,0.00041029,2]
[334286642,1722894648439,-326.07969762,0.00041073,5]
[334286643,1722894648448,-199.0,0.00041079,14]
[334286644,1722894648459,-500.0,0.00041095,31]
[334286645,1722894648468,-500.0,0.00041095,31]
[334286646,1722894648477,-500.0,0.00041095,31]
[334286647,1722894648488,-500.0,0.00041095,31]
[334286648,1722894648497,-500.0,0.00041095,31]
[334286649,1722894648507,-500.0,0.00041095,31]
[334286650,1722894648517,-500.0,0.00041095,31]
[334286651,1722894648527,-611.75,0.00041095,31]
[334286652,1722894648537,-500.0,0.00041095,31]
[334286653,1722894648547,-500.0,0.00041095,31]
[334286654,1722894648557,-500.0,0.00041095,31]
[334286655,1722894648568,-500.0,0.00041095,31]
[334286656,1722894648579,-500.0,0.00041095,31]
[334286657,1722894648588,-500.0,0.00041095,31]
[334286658,1722894648598,-500.0,0.00041095,31]
[334286659,1722894648608,-500.0,0.00041095,31]
[334286660,1722894648618,-500.0,0.00041095,31]
[334286661,1722894648628,-500.0,0.00041095,31]
[334286662,1722894648638,-500.0,0.00041095,31]
[334286663,1722894648647,-500.0,0.00041095,31]
[334286664,1722894648657,-500.0,0.00041095,31]
[334286665,1722894648667,-500.0,0.00041095,31]
[334286666,1722894648677,-500.0,0.00041095,31]
[334286667,1722894648686,-355.06298746,0.00041095,31]
[334286668,1722894648697,-500.0,0.00041095,31]
[334286669,1722894648707,-500.0,0.00041095,31]
[334286670,1722894648716,-500.0,0.00041095,31]
[334286671,1722894648726,-500.0,0.00041095,31]
[334286672,1722894648736,-500.0,0.00041095,31]
[334286673,1722894648748,-500.0,0.00041095,31]
[334286674,1722894648758,-500.0,0.00041095,31]
[334286675,1722894648767,-500.0,0.00041095,31]
[334286676,1722894648776,-519.18528221,0.00041095,31]
[334286677,1722894648785,-500.0,0.00041095,31]
[334286678,1722894648795,-481.47311259,0.00041095,31]
[334286679,1722894648804,-500.0,0.00041095,31]
[334286680,1722894648813,-500.0,0.00041095,31]
[334286681,1722894648822,-500.0,0.00041095,31]
[334286682,1722894648832,-500.0,0.00041095,31]
[334286683,1722894648842,-500.0,0.00041095,31]
[334286684,1722894648852,-586.83,0.00041095,31]
[334286685,1722894648862,-500.0,0.00041095,31]
[334286686,1722894648871,-500.0,0.00041095,31]
[334286687,1722894648880,-500.0,0.00041095,31]
[334286688,1722894648890,-500.0,0.00041095,31]
[334286689,1722894648899,-500.0,0.00041095,31]
[334286690,1722894648909,-500.0,0.00041095,31]
[334286691,1722894648918,-387.01857868,0.00041095,31]
[334286692,1722894648928,-500.0,0.00041095,31]
[334286693,1722894648937,-500.0,0.00041095,31]
[334286694,1722894648947,-500.0,0.00041095,31]
[334286695,1722894648956,-500.0,0.00041095,31]
[334286696,1722894648966,-500.0,0.00041095,31]
[334286697,1722894648975,-500.0,0.00041095,31]
[334286698,1722894648984,-367.35333785,0.00041095,31]
[334286699,1722894648994,-500.0,0.00041095,31]
[334286700,1722894649003,-488.51338655,0.00041095,31]
[334286701,1722894649013,-500.0,0.00041095,31]
[334286702,1722894649022,-500.0,0.00041095,31]
[334286703,1722894649033,-500.0,0.00041095,31]
[334286704,1722894649046,-500.0,0.00041095,31]
[334286705,1722894649055,-500.0,0.00041095,31]
[334286706,1722894649065,-500.0,0.00041095,31]
[334286707,1722894649075,-500.0,0.00041095,31]
[334286708,1722894649086,-500.0,0.00041095,31]
[334286709,1722894649095,-500.0,0.00041095,31]
[334286710,1722894649104,-500.0,0.00041095,31]
[334286711,1722894649115,-500.0,0.00041095,31]
[334286712,1722894649126,-500.0,0.00041095,31]
[334286713,1722894649136,-351.23763133,0.00041095,31]
[334286714,1722894649145,-500.0,0.00041095,31]
[334286715,1722894649155,-500.0,0.00041095,31]
[334286716,1722894649165,-500.0,0.00041095,31]
[334286717,1722894649174,-500.0,0.00041095,31]
[334286718,1722894649185,-500.0,0.00041095,31]
[334286719,1722894649195,-500.0,0.00041095,31]
[334286720,1722894649205,-572.16986044,0.00041095,31]
[334286721,1722894649215,-500.0,0.00041095,31]
[334286722,1722894649224,-1196.26,0.00041095,31]
[334286723,1722894649233,-432.47013708,0.00041095,31]
[334286724,1722894649243,-500.0,0.00041095,31]
[334286725,1722894649252,-500.0,0.00041095,31]
[334286726,1722894649261,-500.0,0.00041095,31]
[334286727,1722894649271,-500.0,0.00041095,31]
[334286728,1722894649280,-500.0,0.00041095,31]
[334286729,1722894649290,-500.0,0.00041095,31]
[334286730,1722894649301,-500.0,0.00041095,31]
[334286731,1722894649310,-500.0,0.00041095,31]
[334286732,1722894649319,-500.0,0.00041095,31]
[334286733,1722894649328,-500.0,0.00041095,31]
[334286734,1722894649339,-600.76,0.00041095,31]
[334286735,1722894649348,-500.0,0.00041095,31]
[334286736,1722894649358,-500.0,0.00041095,31]
[334286737,1722894649368,-500.0,0.00041095,31]
[334286738,1722894649378,-500.0,0.00041095,31]
[334286739,1722894649388,-500.0,0.00041095,31]